[Event "GER-ch Youth-U14w 2022"]
[Site "Willingen"]
[Date "2022.06.07"]
[Round "4.11"]
[White "Müller, Cosima"]
[Black "Margaryan, Sofia"]
[Result "1-0"]
[ECO "B41"]
[WhiteElo "1389"]
[BlackElo "1181"]
[Annotator "NA RC COMBH"]
[PlyCount "99"]
[EventDate "2022.06.05"]
[EventType "swiss"]
[EventRounds "9"]
[EventCountry "GER"]
[SourceTitle "playchess.com"]
[Source "ChessBase"]
[SourceQuality "1"]
[TimeControl "40/4500+30:900+30"]

1. e4 c5 {[%emt 0:00:00]} 2. Nf3 {[%emt 0:00:00]} e6 {[%emt 0:00:00]} 3. d4 {[%emt 0:00:00]} cxd4 {[%emt 0:00:00]} 4. Nxd4 {[%emt 0:00:00]} a6 {[%emt 0:00:00]} 5. c4 {[%emt 0:00:00]} d5 {[%emt 0:00:00]} 6. cxd5 {[%emt 0:00:00]} exd5 {[%emt 0:00:00]} 7. Nc3 {[%emt 0:00:00]} Bb4 {[%emt 0:00:00]} 8. Qa4+ {[%emt 0:01:05]} Nc6 {[%emt 0:00:00]} 9. Nxc6 {[%emt 0:00:30]} bxc6 {[%emt 0:00:00]} 10. Qxb4 {[%emt 0:01:04]} Ne7 {[%emt 0:00:00]} 11. exd5 {[%emt 0:01:58]} cxd5 {[%emt 0:00:00]} 12. Qa4+ {[%emt 0:01:44]} Bd7 {[%emt 0:00:00]} 13. Qd4 {[%emt 0:01:25]} O-O {[%emt 0:00:00]} 14. Nxd5 {[%emt 0:01:57]} Nxd5 {[%emt 0:00:00]} 15. Qxd5 {[%emt 0:00:14]} Re8+ {[%emt 0:00:00]} 16. Be3 {[%emt 0:00:29]} Qc7 {[%emt 0:00:00]} 17. Be2 {[%emt 0:03:01]} Bc6 {[%emt 0:00:00]} 18. Qc5 {[%emt 0:06:20]} Qb7 {[%emt 0:02:23]} 19. f3 {[%emt 0:07:44]} Rac8 {[%emt 0:00:29]} 20. Qd4 {[%emt 0:12:56]} Re7 {[%emt 0:04:36]} 21. Rd1 {[%emt 0:05:56]} h6 {[%emt 0:01:07]} 22. O-O {[%emt 0:01:10]} Rce8 {[%emt 0:00:19]} 23. Rd3 {[%emt 0:01:17]} Bb5 {[%emt 0:00:21]} 24. Rb3 {[%emt 0:00:25]} Qc6 {[%emt 0:05:39]} 25. Bxb5 {[%emt 0:01:24]} axb5 {[%emt 0:00:14]} 26. Rc1 {[%emt 0:01:32]} Qg6 {[%emt 0:02:08]} 27. Bf2 {[%emt 0:02:27]} Re5 {[%emt 0:01:24]} 28. Bg3 {[%emt 0:02:37]} Rf5 {[%emt 0:02:57]} 29. Qd7 {[%emt 0:00:55]} Re2 {[%emt 0:01:48]} 30. Rxb5 {[%emt 0:05:55]} Rf4 {[%emt 0:02:29]} 31. Kf1 {[%emt 0:03:36]} Rc2 {[%emt 0:02:26]} 32. Rxc2 {[%emt 0:01:23]} Rxf3+ {[%emt 0:01:43]} 33. gxf3 {[%emt 0:00:34]} Qxc2 {[%emt 0:00:06]} 34. Qe8+ {[%emt 0:00:16]} Kh7 {[%emt 0:00:12]} 35. Qe4+ {[%emt 0:00:06]} Qxe4 {[%emt 0:00:15]} 36. fxe4 {[%emt 0:00:05]} g6 {[%emt 0:00:14]} 37. a4 {[%emt 0:00:17]} f5 {[%emt 0:00:06]} 38. exf5 {[%emt 0:00:05]} gxf5 {[%emt 0:00:09]} 39. Rxf5 {[%emt 0:00:04]} Kg6 {[%emt 0:00:12]} 40. Re5 {[%emt 0:00:19]} h5 {[%emt 0:00:12]} 41. a5 {[%emt 0:15:07]} Kf6 {[%emt 0:15:13]} 42. a6 {[%emt 0:00:14]} h4 {[%emt 0:00:07]} 43. Bf4 {[%emt 0:00:04]} h3 {[%emt 0:00:14]} 44. a7 {[%emt 0:00:02]} Kg7 {[%emt 0:00:08]} 45. a8=Q Kg6 46. Qc6+ {[%emt 0:01:12]} Kf7 {[%emt 0:00:42]} 47. Qe6+ {[%emt 0:00:08]} Kg7 {[%emt 0:00:10]} 48. Rg5+ {[%emt 0:00:12]} Kh7 {[%emt 0:00:24]} 49. Qg6+ {[%emt 0:00:09]} Kh8 {[%emt 0:00:12]} 50. Be5# 1-0

[Event "GER-ch Youth-U14w 2022"]
[Site "Willingen"]
[Date "2022.06.07"]
[Round "4.12"]
[White "Modali, Nikhilamrutha"]
[Black "Bursan, Ana-Maria"]
[Result "0-1"]
[ECO "B11"]
[WhiteElo "1262"]
[BlackElo "1329"]
[Annotator "NA RC COMBH"]
[PlyCount "94"]
[EventDate "2022.06.05"]
[EventType "swiss"]
[EventRounds "9"]
[EventCountry "GER"]
[SourceTitle "playchess.com"]
[Source "ChessBase"]
[SourceQuality "1"]
[TimeControl "40/4500+30:900+30"]

1. e4 {[%emt 0:00:00]} c6 {[%emt 0:00:00]} 2. Nc3 {[%emt 0:00:00]} d5 {[%emt 0:00:00]} 3. Nf3 {[%emt 0:00:00]} Bg4 {[%emt 0:00:00]} 4. exd5 {[%emt 0:00:00]} cxd5 {[%emt 0:00:00]} 5. h3 {[%emt 0:00:00]} Bh5 {[%emt 0:00:00]} 6. Bb5+ {[%emt 0:00:00]} Nc6 {[%emt 0:00:00]} 7. g4 {[%emt 0:00:00]} Bg6 {[%emt 0:00:00]} 8. Ne5 {[%emt 0:00:00]} Rc8 {[%emt 0:00:00]} 9. d4 {[%emt 0:00:00]} e6 {[%emt 0:00:00]} 10. h4 {[%emt 0:00:00]} h6 {[%emt 0:00:00]} 11. Nxg6 {[%emt 0:00:00]} fxg6 {[%emt 0:00:00]} 12. Qe2 {[%emt 0:05:26]} Qf6 {[%emt 0:02:09]} 13. Nxd5 {[%emt 0:07:35]} Qf7 {[%emt 0:05:28]} 14. Nf4 {[%emt 0:05:06]} Kd7 {[%emt 0:06:36]} 15. O-O {[%emt 0:07:09]} Bd6 {[%emt 0:03:03]} 16. Nd3 {[%emt 0:07:21]} Qf6 {[%emt 0:04:16]} 17. Ne5+ {[%emt 0:04:17]} Kc7 {[%emt 0:02:46]} 18. g5 {[%emt 0:02:30]} Qf5 {[%emt 0:05:53]} 19. c3 {[%emt 0:07:09]} Nge7 {[%emt 0:09:10]} 20. Bd3 {[%emt 0:12:55]} Qf8 {[%emt 0:07:47]} 21. Nxg6 {[%emt 0:03:36]} Nxg6 {[%emt 0:01:28]} 22. Bxg6 {[%emt 0:00:06]} Qe7 {[%emt 0:06:11]} 23. f4 {[%emt 0:03:39]} Rcf8 {[%emt 0:05:44]} 24. f5 {[%emt 0:02:10]} e5 {[%emt 0:01:40]} 25. f6 {[%emt 0:02:44]} gxf6 {[%emt 0:01:02]} 26. gxf6 {[%emt 0:00:31]} Rxf6 {[%emt 0:00:46]} 27. h5 {[%emt 0:01:20]} Rg8 {[%emt 0:02:08]} 28. Rxf6 {[%emt 0:02:24]} Qxf6 {[%emt 0:00:37]} 29. Be3 {[%emt 0:01:42]} exd4 {[%emt 0:04:05]} 30. Rf1 {[%emt 0:00:34]} Qe5 {[%emt 0:00:53]} 31. cxd4 {[%emt 0:02:01]} Qg3+ {[%emt 0:01:00]} 32. Kh1 {[%emt 0:01:44]} Qh3+ {[%emt 0:01:55]} 33. Kg1 {[%emt 0:00:20]} Ne7 {[%emt 0:02:52]} 34. Bf4 {[%emt 0:02:31]} Nxg6 {[%emt 0:05:13]} 35. Bxd6+ {[%emt 0:00:26]} Kd8 {[%emt 0:01:32]} 36. Bc7+ {[%emt 0:04:54]} Kc8 {[%emt 0:02:51]} 37. Bg3 {[%emt 0:01:57]} Qxg3+ {[%emt 0:00:22]} 38. Qg2 {[%emt 0:00:05]} Qxg2+ {[%emt 0:00:38]} 39. Kxg2 {[%emt 0:00:04]} Nf4+ {[%emt 0:00:21]} 40. Kf3 {[%emt 0:00:48]} Nxh5 {[%emt 0:00:22]} 41. d5 {[%emt 0:15:10]} Rf8+ {[%emt 0:15:33]} 42. Kg2 {[%emt 0:00:08]} Rxf1 {[%emt 0:00:16]} 43. Kxf1 {[%emt 0:00:04]} Kd7 {[%emt 0:00:11]} 44. Kg2 {[%emt 0:00:12]} Kd6 {[%emt 0:00:12]} 45. Kh3 {[%emt 0:00:05]} Kxd5 {[%emt 0:00:21]} 46. Kh4 {[%emt 0:00:05]} Nf6 {[%emt 0:00:16]} 47. Kg3 {[%emt 0:00:15]} Kd4 {[%emt 0:00:09]} 0-1

[Event "GER-ch Youth-U14w 2022"]
[Site "Willingen"]
[Date "2022.06.07"]
[Round "4.13"]
[White "Brandt, Greta"]
[Black "Ottlik, Marie"]
[Result "0-1"]
[ECO "A34"]
[WhiteElo "1458"]
[BlackElo "1442"]
[Annotator "NA RC COMBH"]
[PlyCount "56"]
[EventDate "2022.06.05"]
[EventType "swiss"]
[EventRounds "9"]
[EventCountry "GER"]
[SourceTitle "playchess.com"]
[Source "ChessBase"]
[SourceQuality "1"]
[TimeControl "40/4500+30:900+30"]

1. c4 {[%emt 0:00:00]} c5 {[%emt 0:00:00]} 2. Nc3 {[%emt 0:00:00]} Nf6 {[%emt 0:00:00]} 3. g3 {[%emt 0:00:00]} d5 {[%emt 0:00:00]} 4. cxd5 {[%emt 0:00:00]} Nxd5 {[%emt 0:00:00]} 5. Bg2 {[%emt 0:00:00]} Nc7 {[%emt 0:00:00]} 6. d3 {[%emt 0:00:00]} e5 {[%emt 0:00:00]} 7. Nf3 {[%emt 0:00:00]} Nc6 {[%emt 0:00:00]} 8. O-O {[%emt 0:00:00]} Be7 {[%emt 0:00:00]} 9. a3 {[%emt 0:01:28]} O-O {[%emt 0:00:00]} 10. Nd2 {[%emt 0:07:40]} Bd7 {[%emt 0:02:11]} 11. Nc4 {[%emt 0:03:48]} f6 {[%emt 0:03:02]} 12. Qb3 Kh8 {[%emt 0:24:57]} 13. h3 {[%emt 0:11:46]} Rb8 {[%emt 0:08:34]} 14. Kh2 {[%emt 0:05:25]} Nd4 {[%emt 0:04:38]} 15. Qd1 {[%emt 0:00:14]} b6 {[%emt 0:02:01]} 16. e3 {[%emt 0:04:52]} Ndb5 {[%emt 0:02:30]} 17. Bd2 {[%emt 0:03:41]} Bf5 {[%emt 0:04:39]} 18. e4 {[%emt 0:00:57]} Be6 {[%emt 0:01:50]} 19. Nxb5 {[%emt 0:05:38]} Nxb5 {[%emt 0:00:23]} 20. Be3 {[%emt 0:01:49]} Nd4 {[%emt 0:04:40]} 21. f4 {[%emt 0:02:23]} Nc6 {[%emt 0:03:13]} 22. fxe5 {[%emt 0:02:57]} fxe5 {[%emt 0:03:14]} 23. Rxf8+ {[%emt 0:00:32]} Qxf8 {[%emt 0:01:32]} 24. Qh5 {[%emt 0:03:26]} Qf7 {[%emt 0:05:11]} 25. Qxf7 {[%emt 0:01:16]} Bxf7 {[%emt 0:00:05]} 26. Rf1 {[%emt 0:00:16]} Be6 {[%emt 0:01:46]} 27. Rf2 {[%emt 0:04:11]} Rd8 {[%emt 0:01:35]} 28. Rd2 {[%emt 0:02:38]} b5 {[%emt 0:00:26]} 0-1

[Event "GER-ch Youth-U14w 2022"]
[Site "Willingen"]
[Date "2022.06.07"]
[Round "4.14"]
[White "Heuberger, Sandra"]
[Black "Marrufo, Emilia"]
[Result "1-0"]
[ECO "D31"]
[WhiteElo "1101"]
[BlackElo "998"]
[Annotator "NA RC COMBH"]
[PlyCount "93"]
[EventDate "2022.06.05"]
[EventType "swiss"]
[EventRounds "9"]
[EventCountry "GER"]
[SourceTitle "playchess.com"]
[Source "ChessBase"]
[SourceQuality "1"]
[TimeControl "40/4500+30:900+30"]

1. d4 {[%emt 0:00:00]} d5 {[%emt 0:00:00]} 2. c4 {[%emt 0:00:00]} e6 {[%emt 0:00:00]} 3. Nc3 {[%emt 0:00:00]} c6 {[%emt 0:00:00]} 4. Nf3 {[%emt 0:00:00]} dxc4 {[%emt 0:00:00]} 5. e3 {[%emt 0:00:00]} b5 {[%emt 0:00:00]} 6. a4 {[%emt 0:00:00]} Bb4 {[%emt 0:00:00]} 7. Bd2 {[%emt 0:00:00]} Bxc3 {[%emt 0:00:00]} 8. Bxc3 {[%emt 0:01:52]} Nf6 {[%emt 0:00:00]} 9. axb5 {[%emt 0:07:02]} cxb5 {[%emt 0:02:05]} 10. b3 {[%emt 0:07:12]} Ba6 {[%emt 0:05:43]} 11. bxc4 {[%emt 0:05:00]} bxc4 {[%emt 0:03:58]} 12. Nd2 {[%emt 0:03:20]} Qc8 {[%emt 0:02:31]} 13. Qa4+ {[%emt 0:03:43]} Qc6 {[%emt 0:02:03]} 14. Qxc6+ {[%emt 0:01:09]} Nxc6 {[%emt 0:00:09]} 15. Rxa6 {[%emt 0:00:13]} Ne7 {[%emt 0:01:25]} 16. Bxc4 {[%emt 0:00:26]} O-O {[%emt 0:00:39]} 17. Bb4 {[%emt 0:01:42]} Rfe8 {[%emt 0:02:00]} 18. O-O {[%emt 0:05:41]} Nf5 {[%emt 0:02:09]} 19. Bc5 {[%emt 0:01:58]} Rac8 {[%emt 0:01:45]} 20. Rxa7 {[%emt 0:01:32]} h6 {[%emt 0:00:15]} 21. Nf3 {[%emt 0:04:33]} Ne4 {[%emt 0:01:59]} 22. Ra5 {[%emt 0:04:20]} Red8 {[%emt 0:02:05]} 23. Bd3 {[%emt 0:04:47]} Nxc5 {[%emt 0:01:43]} 24. Bxf5 {[%emt 0:00:35]} exf5 {[%emt 0:00:45]} 25. Rxc5 {[%emt 0:00:14]} Rxc5 {[%emt 0:00:07]} 26. dxc5 {[%emt 0:00:19]} Rc8 {[%emt 0:00:16]} 27. Rc1 {[%emt 0:00:14]} Rc6 {[%emt 0:00:17]} 28. Nd4 {[%emt 0:01:18]} Rc7 {[%emt 0:00:16]} 29. Nxf5 {[%emt 0:00:30]} g6 {[%emt 0:00:13]} 30. Nxh6+ {[%emt 0:00:23]} Kg7 {[%emt 0:00:09]} 31. Ng4 {[%emt 0:00:24]} Rc8 {[%emt 0:00:28]} 32. c6 {[%emt 0:00:26]} Rc7 {[%emt 0:00:13]} 33. Ne5 {[%emt 0:02:09]} f6 {[%emt 0:01:36]} 34. Nd7 {[%emt 0:00:40]} Rc8 {[%emt 0:00:37]} 35. c7 {[%emt 0:00:58]} Rxc7 {[%emt 0:00:21]} 36. Rxc7 {[%emt 0:00:09]} Kh6 {[%emt 0:01:43]} 37. Nxf6 {[%emt 0:00:25]} Kg5 38. Ng8 {[%emt 0:00:57]} Kf5 {[%emt 0:00:58]} 39. Rc6 {[%emt 0:01:09]} Kg5 40. Rc5+ {[%emt 0:00:53]} Kg4 {[%emt 0:00:41]} 41. e4 {[%emt 0:17:59]} g5 {[%emt 0:15:32]} 42. e5 {[%emt 0:01:02]} Kf4 {[%emt 0:00:17]} 43. e6 {[%emt 0:00:20]} Kg4 {[%emt 0:00:10]} 44. e7 {[%emt 0:00:28]} Kf4 {[%emt 0:00:13]} 45. e8=Q {[%emt 0:01:02]} Kg4 {[%emt 0:00:17]} 46. Nf6+ {[%emt 0:00:50]} Kf4 {[%emt 0:00:16]} 47. Qe4# 1-0

[Event "GER-ch Youth-U14w 2022"]
[Site "Willingen"]
[Date "2022.06.07"]
[Round "4.15"]
[White "Funke, Luise"]
[Black "Lorenz, Rebecca"]
[Result "1-0"]
[ECO "C54"]
[WhiteElo "970"]
[BlackElo "733"]
[Annotator "NA RC COMBH"]
[PlyCount "87"]
[EventDate "2022.06.05"]
[EventType "swiss"]
[EventRounds "9"]
[EventCountry "GER"]
[SourceTitle "playchess.com"]
[Source "ChessBase"]
[SourceQuality "1"]
[TimeControl "40/4500+30:900+30"]

1. e4 {[%emt 0:00:00]} e5 {[%emt 0:00:00]} 2. Nf3 {[%emt 0:00:00]} Nc6 {[%emt 0:00:00]} 3. Bc4 {[%emt 0:00:00]} Bc5 {[%emt 0:00:00]} 4. c3 {[%emt 0:00:00]} Nf6 {[%emt 0:00:00]} 5. d4 {[%emt 0:00:00]} exd4 {[%emt 0:00:00]} 6. e5 {[%emt 0:00:00]} Ne4 {[%emt 0:00:00]} 7. Bd5 {[%emt 0:00:00]} Qe7 {[%emt 0:00:00]} 8. Bxe4 {[%emt 0:00:00]} Nxe5 {[%emt 0:00:00]} 9. cxd4 {[%emt 0:00:00]} Bb4+ {[%emt 0:00:00]} 10. Nc3 {[%emt 0:00:00]} Ng4 {[%emt 0:00:00]} 11. Qe2 {[%emt 0:00:00]} d6 {[%emt 0:00:00]} 12. O-O {[%emt 0:00:00]} O-O {[%emt 0:01:17]} 13. Bxh7+ {[%emt 0:00:00]} Kxh7 {[%emt 0:01:16]} 14. Qxe7 {[%emt 0:00:00]} Be6 {[%emt 0:00:32]} 15. Qh4+ {[%emt 0:00:00]} Kg8 {[%emt 0:00:57]} 16. h3 {[%emt 0:02:48]} Nf6 {[%emt 0:05:11]} 17. Bh6 {[%emt 0:06:42]} Rfd8 {[%emt 0:05:43]} 18. Qg5 {[%emt 0:01:24]} Ne8 {[%emt 0:02:11]} 19. a3 {[%emt 0:03:38]} Ba5 {[%emt 0:02:26]} 20. b4 {[%emt 0:00:24]} Bc4 {[%emt 0:05:23]} 21. Rfe1 {[%emt 0:00:23]} Kf8 {[%emt 0:11:47]} 22. Qe7+ {[%emt 0:02:53]} Kg8 {[%emt 0:03:54]} 23. bxa5 {[%emt 0:03:12]} gxh6 {[%emt 0:02:11]} 24. d5 {[%emt 0:00:18]} Bd3 {[%emt 0:03:17]} 25. Re3 {[%emt 0:02:03]} Bf5 {[%emt 0:01:19]} 26. Nh4 {[%emt 0:01:19]} Rd7 {[%emt 0:00:56]} 27. Qxe8+ {[%emt 0:02:09]} Rxe8 {[%emt 0:00:40]} 28. Rxe8+ {[%emt 0:00:07]} Kg7 {[%emt 0:01:53]} 29. Nxf5+ {[%emt 0:00:15]} Kf6 {[%emt 0:00:25]} 30. Nxh6 {[%emt 0:00:39]} c6 {[%emt 0:01:38]} 31. Ng4+ {[%emt 0:00:50]} Kg7 {[%emt 0:00:27]} 32. Rae1 {[%emt 0:00:33]} f5 {[%emt 0:01:18]} 33. R1e7+ {[%emt 0:00:33]} Rxe7 {[%emt 0:02:38]} 34. Rxe7+ {[%emt 0:00:08]} Kf8 {[%emt 0:01:58]} 35. dxc6 {[%emt 0:00:00]} bxc6 {[%emt 0:01:12]} 36. Rxa7 {[%emt 0:00:00]} Ke8 {[%emt 0:01:02]} 37. a6 {[%emt 0:00:00]} Kd8 {[%emt 0:00:33]} 38. Nf6 {[%emt 0:00:00]} Kc8 {[%emt 0:02:16]} 39. Rh7 {[%emt 0:00:12]} Kb8 {[%emt 0:00:54]} 40. Nd7+ {[%emt 0:00:45]} Ka7 {[%emt 0:01:23]} 41. Nc5+ {[%emt 0:16:00]} Ka8 {[%emt 0:15:46]} 42. N3a4 {[%emt 0:00:39]} dxc5 {[%emt 0:01:41]} 43. a7 {[%emt 0:00:42]} c4 44. Nb6# {[%emt 0:00:20]} 1-0

[Event "GER-ch Youth-U14w 2022"]
[Site "Willingen"]
[Date "2022.06.08"]
[Round "5.1"]
[White "Peglau, Dora"]
[Black "Trunz, Michelle"]
[Result "1-0"]
[ECO "A84"]
[WhiteElo "2008"]
[BlackElo "1708"]
[Annotator "TA"]
[PlyCount "71"]
[EventDate "2022.06.05"]
[EventType "swiss"]
[EventRounds "9"]
[EventCountry "GER"]
[SourceTitle "playchess.com"]
[Source "ChessBase"]
[SourceQuality "1"]
[TimeControl "40/4500+30:900+30"]

{[%evp 9,71,6,12,4,19,22,6,14,38,22,14,-8,25,-10,24,-14,35,16,61,55,37,60,76,29,191,197,287,286,579,559,615,597,721,561,541,498,545,506,501,494,471,437,545,509,558,551,556,521,1039,1014,1048,1024,1218,1218,1255,1239,1518,1474,29982,29983,29977,29971,29990,29991]} 1. d4 {[%emt 0:00:00]} f5 {[%emt 0:00:00]} 2. c4 {[%emt 0:00:00]} Nf6 {[%emt 0:00:00]} 3. Nf3 {[%emt 0:00:00]} e6 {[%emt 0:00:00]} 4. Bf4 {[%emt 0:00:00]} Bb4+ {[%emt 0:00:00]} 5. Nbd2 {[%emt 0:00:00] [#]} Bxd2+ $146 {[%emt 0:00:00]} ({Predecessor:} 5... b6 6. a3 Bxd2+ 7. Qxd2 Bb7 8. e3 O-O 9. Be2 d6 10. O-O Nbd7 11. h3 Ne4 12. Qc2 {0-1 (61) Sarana,A (2654)-Amin,B (2686) Chess.com INT 2020}) 6. Qxd2 {[%emt 0:00:00] A84: Dutch Defence: 2 c4 Miscellaneous.} d6 {[%emt 0:00:00]} 7. g3 {[%emt 0:00:00]} b6 {[%emt 0:00:00]} 8. Bg2 {[%emt 0:00:00] The position is equal.} Bb7 {[%emt 0:00:00]} 9. O-O {[%emt 0:00:00]} (9. d5 $5) 9... O-O {[%emt 0:00:00]} 10. Qc2 {[%emt 0:02:57][%cal Od4d5]} Nbd7 {[%emt 0:00:00]} 11. b4 {[%emt 0:02:52][%cal Od4d5]} (11. d5 $5 {[%cal Rf3d4]}) 11... Qe7 {[%emt 0:13:01]} 12. Rfd1 {[%emt 0:05:43][%cal Od4d5]} (12. d5 $5) 12... Ne4 {[%emt 0:02:07]} (12... Be4 $11 13. Qb3 a5) 13. Ng5 {[%emt 0:09:47][%cal Rg5e4]} Nxg5 {[%emt 0:15:23]} 14. Bxg5 {[%emt 0:00:37]} ({But not} 14. Bxb7 Nh3+ 15. Kf1 Rab8 $11) 14... Qxg5 {[%emt 0:00:08]} 15. Bxb7 {[%emt 0:00:04]} Rab8 {[%emt 0:01:17]} 16. Bg2 {[%emt 0:00:45]} (16. Bf3 $16) 16... Rf6 $2 {[%emt 0:01:22] Black cannot hold the game after this.} (16... f4 $11) 17. Qa4 $18 {[%emt 0:04:11][%csl LRa7,LRd7]} Rd8 {[%emt 0:04:25]} (17... Rf7 {was worth a try.} 18. Qxa7 Qd8) 18. Qxa7 {[%emt 0:00:30]} Rh6 $2 {[%emt 0:02:57]} (18... Rc8 19. Qb7 Rff8) 19. Qxc7 {[%emt 0:02:28]} Nf8 {[%emt 0:03:01]} 20. Qxb6 {[%emt 0:07:16]} Rd7 {[%emt 0:07:12]} 21. Bf3 {[%emt 0:03:38]} f4 {[%emt 0:00:42]} 22. Qb5 {[%emt 0:01:58]} d5 {[%emt 0:03:15]} 23. Qb8 {[%emt 0:10:20]} Rf7 {[%emt 0:01:29]} 24. Kg2 {[%emt 0:12:59]} Qf5 {[%emt 0:04:03]} 25. Rh1 {[%emt 0:01:46] [#] And now c5 would win.} ({Don't take} 25. g4 Qg5 26. cxd5 exd5) 25... Qh3+ {[%emt 0:04:02]} 26. Kg1 {[%emt 0:00:01]} dxc4 {[%emt 0:10:27]} 27. a4 {[%emt 0:02:11]} g5 {[%emt 0:01:41]} 28. a5 {[%emt 0:04:47] a6 is the strong threat.} g4 {[%emt 0:01:49]} 29. Bg2 {[%emt 0:00:07]} Qh5 {[%emt 0:00:19]} 30. a6 {[%emt 0:01:02]} f3 {[%emt 0:00:58]} 31. exf3 {[%emt 0:00:20]} gxf3 {[%emt 0:00:40]} 32. Bf1 {[%emt 0:00:46]} Rg7 {[%emt 0:06:16]} 33. a7 {[%emt 0:02:15]} Rxg3+ {[%emt 0:01:45]} 34. Qxg3+ {[%emt 0:00:39] White mates.} Rg6 {[%emt 0:00:17] [#]} 35. a8=Q $1 {[%emt 0:00:31]} Rxg3+ {[%emt 0:00:32]} (35... Qf5 36. Bxc4) 36. hxg3 {[%emt 0:00:15] Weighted Error Value: White=0.21 (precise) /Black=0.58} 1-0

[Event "GER-ch Youth-U14w 2022"]
[Site "Willingen"]
[Date "2022.06.08"]
[Round "5.2"]
[White "Haug, Mara"]
[Black "Braeutigam, Katerina"]
[Result "0-1"]
[ECO "B75"]
[WhiteElo "1394"]
[BlackElo "1860"]
[Annotator "NA RC COMBH"]
[PlyCount "64"]
[EventDate "2022.06.05"]
[EventType "swiss"]
[EventRounds "9"]
[EventCountry "GER"]
[SourceTitle "playchess.com"]
[Source "ChessBase"]
[SourceQuality "1"]
[TimeControl "40/4500+30:900+30"]

1. e4 {[%emt 0:00:00]} c5 {[%emt 0:00:00]} 2. Nf3 {[%emt 0:00:00]} d6 {[%emt 0:00:00]} 3. d4 {[%emt 0:00:00]} cxd4 {[%emt 0:00:00]} 4. Nxd4 {[%emt 0:00:00]} Nf6 {[%emt 0:00:00]} 5. Nc3 {[%emt 0:00:00]} g6 {[%emt 0:00:00]} 6. Be3 {[%emt 0:00:00]} Bg7 {[%emt 0:00:00]} 7. f3 {[%emt 0:00:00]} a6 {[%emt 0:00:00]} 8. Qd2 {[%emt 0:00:00]} b5 {[%emt 0:00:00]} 9. O-O-O {[%emt 0:05:42]} Bb7 {[%emt 0:00:00]} 10. h4 {[%emt 0:02:13]} h5 {[%emt 0:00:15]} 11. Kb1 {[%emt 0:05:03]} Nbd7 {[%emt 0:05:19]} 12. g3 {[%emt 0:08:49]} Ne5 {[%emt 0:06:07]} 13. Bd3 {[%emt 0:06:34]} Rc8 {[%emt 0:09:05]} 14. Bf4 {[%emt 0:04:26]} Nxd3 {[%emt 0:14:57]} 15. Qxd3 {[%emt 0:01:51]} e5 {[%emt 0:12:07]} 16. Ndxb5 $1 {[%emt 0:10:01]} axb5 {[%emt 0:01:19]} 17. Nxb5 {[%emt 0:06:34]} O-O {[%emt 0:03:24]} 18. Bg5 {[%emt 0:03:23]} Ba6 {[%emt 0:03:52]} 19. c4 {[%emt 0:05:56]} Qa5 {[%emt 0:10:50]} 20. Qxd6 {[%emt 0:05:56]} Rxc4 {[%emt 0:08:13]} 21. Na3 {[%emt 0:05:41]} Ra4 {[%emt 0:08:03]} 22. Bxf6 {[%emt 0:02:35]} Bxf6 {[%emt 0:02:16]} 23. Rd5 {[%emt 0:06:16]} Rd4 {[%emt 0:00:40]} 24. Qxf6 {[%emt 0:01:29]} Bd3+ {[%emt 0:00:29]} 25. Ka1 {[%emt 0:00:54]} Rxd5 {[%emt 0:00:28]} 26. exd5 {[%emt 0:00:09]} Qxd5 {[%emt 0:00:31]} 27. Re1 {[%emt 0:01:50]} Rc8 {[%emt 0:00:30]} 28. Qg5 {[%emt 0:02:01]} Qd4 {[%emt 0:00:32]} 29. Qd2 {[%emt 0:00:44]} Ra8 {[%emt 0:00:23]} 30. Nb1 {[%emt 0:01:16]} Qc4 {[%emt 0:00:37]} 31. Nc3 {[%emt 0:00:23]} Bf5 {[%emt 0:00:30]} 32. Qd5 $19 {[%emt 0:00:37]} (32. Rxe5 $16 Be6 33. Qe2) 32... Rxa2+ {[%emt 0:00:17]} 0-1